bitfinex/quotes_SOLUSD_20250819
["timestamp","ask_amount","ask_price","bid_price","bid_amount"]
[1755561954885,4.28745149,183.43,183.42,26.0]
[1755561955056,4.28745149,183.43,183.42,38.76]
[1755561955387,129.37686382,183.48,183.42,44.21168513]
[1755561955546,0.66,183.45,183.42,44.21168513]
[1755561955741,4.28633138,183.44,183.42,44.21168513]
[1755561955966,119.48,183.48,183.42,44.21168513]
[1755561956167,0.66,183.43,183.42,44.21168513]
[1755561957084,0.66,183.43,183.38,26.0]
[1755561957285,0.66,183.43,183.42,26.0]
[1755561957448,4.28557943,183.43,183.42,26.0]
[1755561957652,4.28557943,183.43,183.39,70.21269439]
[1755561957850,0.66,183.42,183.41,26.0]
[1755561959991,4.28521584,183.42,183.4,26.0]
[1755561960291,0.66,183.41,183.37,38.74]
[1755561960500,0.66,183.41,183.34,0.03]
[1755561960801,3.62456277,183.4,183.34,0.03]
[1755561960955,3.62456277,183.39,183.34,0.03]
[1755561961161,3.62456277,183.38,183.34,0.03]
[1755561961397,0.66,183.38,183.34,0.03]
[1755561961567,0.66,183.37,183.34,0.03]
[1755561961775,0.66,183.37,183.36,26.0]
[1755561961979,4.28408042,183.37,183.34,0.03]
[1755561962190,0.66,183.37,183.34,0.03]
[1755561962498,0.66,183.36,183.35,26.0]
[1755561963667,0.66,183.38,183.35,26.0]
[1755561963868,20.61853656,183.41,183.35,31.45403578]
[1755561964188,0.66,183.39,183.35,31.45403578]
[1755561964561,0.66,183.39,183.35,70.19403578]
[1755561964754,3.6253606,183.4,183.35,70.19403578]
[1755561964955,0.72,183.41,183.35,70.85403578]
[1755561965376,0.72,183.41,183.36,16.388517]
[1755561965883,0.72,183.41,183.37,5.45345476]
[1755561967154,0.72,183.41,183.37,44.17345476]
[1755561967661,0.72,183.41,183.37,44.83345476]
[1755561967978,3.62436146,183.4,183.34,38.75]
[1755561968181,3.62436146,183.39,183.34,38.75]
[1755561968372,0.72,183.41,183.34,38.75]
[1755561968373,0.06,183.41,183.34,64.75]
[1755561968563,0.7,183.38,183.34,64.75]
[1755561968758,3.62450512,183.39,183.34,64.75]
[1755561968981,0.7,183.38,183.34,70.20430525]
[1755561969284,0.7,183.38,183.34,26.03]
[1755561971586,5.45297491,183.39,183.34,26.03]
[1755561971887,0.7,183.37,183.34,26.03]
[1755561972674,6.15297491,183.39,183.34,26.03]
[1755561972865,4.3248999,183.38,183.34,26.03]
[1755561973064,0.7,183.38,183.34,26.03]
[1755561973591,0.7,183.37,183.34,26.03]
[1755561977172,5.45297491,183.39,183.34,31.48431387]
[1755561977373,3.62632074,183.38,183.34,31.48431387]
[1755561977574,3.62632074,183.37,183.34,31.48431387]
[1755561977783,0.7,183.38,183.34,31.48431387]
[1755561977980,3.62624052,183.37,183.34,31.48431387]
[1755561978175,0.7,183.38,183.34,31.48431387]
[1755561978494,3.62619392,183.37,183.34,31.48431387]
[1755561978662,0.7,183.38,183.34,31.48431387]
[1755561978862,3.62619392,183.37,183.34,31.48431387]
[1755561979078,0.7,183.37,183.34,26.03]
[1755561979394,4.32601172,183.36,183.34,26.03]
[1755561979576,0.7,183.36,183.34,26.03]
[1755561979971,86.1526578,183.4,183.34,26.03]
[1755561980288,0.7,183.38,183.34,26.03]
[1755561980484,3.62602596,183.37,183.34,26.03]
[1755561980786,0.7,183.37,183.34,26.03]
[1755561981170,0.7,183.39,183.34,31.48430664]
[1755561981368,4.32641764,183.38,183.34,31.48430664]
[1755561981595,0.7,183.38,183.34,31.48430664]
[1755561983386,0.7,183.38,183.34,32.20430664]
[1755561984388,80.7,183.4,183.35,0.72]
[1755561984590,3.62681054,183.39,183.36,0.72]
[1755561984892,80.7,183.4,183.37,26.0]
[1755561986067,81.4,183.4,183.37,31.45342335]
[1755561986490,80.7,183.4,183.37,26.0]
[1755561986682,4.32768032,183.39,183.38,26.0]
[1755561986880,4.32768032,183.39,183.34,31.48432785]
[1755561987093,4.32768032,183.38,183.34,31.48432785]
[1755561987288,0.7,183.37,183.36,26.0]
[1755561987882,0.7,183.37,183.34,0.03]
[1755561988197,0.7,183.36,183.35,26.0]
[1755561988412,0.7,183.36,183.34,0.03]
[1755561989278,6.15293917,183.39,183.34,0.75]
[1755561989467,3.62874474,183.38,183.34,0.75]
[1755561989701,3.62874474,183.37,183.34,0.03]
[1755561990001,0.7,183.37,183.34,0.03]
[1755561990308,0.7,183.36,183.34,0.03]
[1755561991208,86.15263026,183.4,183.34,0.03]
[1755561991381,3.63023984,183.39,183.36,26.0]
[1755561991572,80.7,183.4,183.36,26.72]
[1755561991896,3.63109829,183.39,183.37,0.72]
[1755561992102,80.7,183.4,183.37,0.72]
[1755561992280,3.63125434,183.39,183.36,26.0]
[1755561992599,80.7,183.4,183.36,26.72]
[1755561992902,3.6319305,183.39,183.37,5.45345476]
[1755561993099,0.7,183.4,183.37,5.45345476]
[1755561993306,4.33192573,183.39,183.36,31.45369113]
[1755561993473,3.63192573,183.38,183.36,31.45369113]
[1755561993672,0.7,183.4,183.36,31.45369113]
[1755561993875,3.63182804,183.39,183.36,31.45369113]
[1755561994079,4.33182804,183.38,183.36,31.45369113]
[1755561994279,0.06,183.39,183.36,31.45369113]
[1755561994490,3.63166874,183.38,183.36,31.45369113]
[1755561994682,0.06,183.39,183.36,31.45369113]
[1755561994886,4.33182646,183.38,183.35,26.0]
[1755561995205,4.33182646,183.37,183.35,26.0]
[1755561995406,0.7,183.37,183.35,26.0]
[1755561995781,0.06,183.39,183.34,0.03]
[1755561995782,0.7,183.36,183.34,0.03]
[1755561995977,0.7,183.35,183.34,26.03]
[1755561997305,0.7,183.37,183.34,26.03]
[1755561997678,3.63456862,183.36,183.34,26.03]
[1755561997975,0.71,183.36,183.34,26.03]
[1755561998298,86.21294496,183.39,183.34,26.03]
[1755561998502,4.34457535,183.38,183.34,26.03]
[1755561998702,3.63457535,183.37,183.34,26.03]
[1755561999006,4.34457535,183.36,183.34,26.03]
[1755561999179,3.63457535,183.35,183.34,26.03]
[1755561999373,0.71,183.38,183.34,26.03]
[1755561999681,4.34361863,183.37,183.34,26.03]
[1755561999906,3.63361863,183.36,183.34,0.03]
[1755562000221,3.63361863,183.35,183.34,26.03]
[1755562001889,4.34361863,183.35,183.34,26.03]
[1755562004208,4.34361863,183.35,183.34,0.03]
[1755562004584,3.63361863,183.35,183.34,0.03]
[1755562005099,3.63361863,183.35,183.34,0.74]
[1755562005606,3.63361863,183.35,183.34,26.03]
[1755562005784,4.34361863,183.35,183.34,0.03]
[1755562007504,9.79766826,183.35,183.34,0.03]
[1755562007813,28.94180233,183.35,183.34,0.03]
[1755562008515,24.90388383,183.35,183.34,0.03]
[1755562010383,105.60388383,183.35,183.34,0.03]
[1755562011610,129.15766826,183.35,183.34,0.03]
[1755562011919,19.71413379,183.39,183.34,26.03]
[1755562011920,0.71,183.38,183.34,26.03]
[1755562012091,4.34303828,183.37,183.34,0.03]
[1755562012411,3.63303828,183.36,183.34,0.03]
[1755562012609,0.77,183.39,183.34,0.74]
[1755562012908,42.29396659,183.38,183.34,0.74]
[1755562013111,3.63396659,183.37,183.34,0.74]
[1755562013312,3.63396659,183.36,183.34,0.74]
[1755562013515,39.37,183.38,183.34,6.19430152]
[1755562013711,3.6340932,183.37,183.34,6.19430152]
[1755562014009,3.6340932,183.37,183.34,5.48430152]
[1755562014010,3.6340932,183.36,183.34,5.48430152]
[1755562014209,38.66,183.38,183.34,5.48430152]
[1755562014413,3.6340074,183.37,183.34,5.48430152]
[1755562014607,3.6340074,183.36,183.35,0.71]
[1755562015493,3.6340074,183.36,183.35,6.16404963]
[1755562015706,38.66,183.38,183.35,6.16404963]
[1755562015905,3.63424369,183.37,183.35,6.16404963]
[1755562016085,38.66,183.38,183.35,5.45404963]
[1755562016289,3.63433355,183.37,183.35,5.45404963]
[1755562016495,38.66,183.38,183.35,5.45404963]
[1755562016795,3.63428589,183.37,183.34,6.19425321]
[1755562016992,0.71,183.38,183.34,6.19425321]
[1755562017291,3.63428644,183.37,183.34,6.19425321]
[1755562017500,0.71,183.38,183.34,6.19425321]
[1755562017701,3.63424031,183.37,183.34,6.19425321]
[1755562017899,0.71,183.38,183.34,6.19425321]
[1755562018101,3.63424031,183.37,183.34,6.19425321]
[1755562018293,0.06,183.39,183.35,0.71]
[1755562018495,3.63430273,183.38,183.36,0.71]
[1755562018693,0.06,183.39,183.37,26.71]
[1755562019317,0.06,183.39,183.38,26.0]
[1755562019488,3.69431709,183.39,183.38,26.0]
[1755562019888,4.40431709,183.39,183.34,26.03]
[1755562020092,4.34431709,183.38,183.35,26.0]
[1755562020294,3.63431709,183.37,183.35,26.0]
[1755562020624,0.06,183.39,183.35,26.0]
[1755562020794,3.63387387,183.38,183.35,26.0]
[1755562020995,3.63387387,183.37,183.35,26.0]
[1755562021301,0.77,183.39,183.35,31.45403684]
[1755562021510,3.63393755,183.38,183.35,31.45403684]
[1755562021714,3.63393755,183.37,183.35,31.45403684]
[1755562022025,0.77,183.39,183.35,31.45403684]
[1755562022207,3.63395707,183.38,183.35,31.45403684]
[1755562022407,3.63395707,183.37,183.35,31.45403684]
[1755562022705,0.06,183.39,183.35,31.45403684]
[1755562022902,3.63394258,183.38,183.35,31.45403684]
[1755562023108,3.63394258,183.37,183.35,31.45403684]
[1755562023315,0.77,183.39,183.35,31.45403684]
[1755562023513,3.63421678,183.38,183.35,31.45403684]
[1755562023697,0.06,183.39,183.36,0.71]
[1755562024127,0.06,183.39,183.37,0.71]
[1755562024310,0.06,183.39,183.38,26.0]
[1755562024732,0.06,183.39,183.38,32.16315737]
[1755562026126,0.06,183.41,183.38,32.16315737]
[1755562026330,0.06,183.41,183.39,39.37]
[1755562026627,0.06,183.44,183.42,26.0]
[1755562026800,0.06,183.44,183.43,5.45167093]
[1755562027005,0.06,183.44,183.43,6.16167093]
[1755562027510,3.6316962,183.48,183.45,26.0]
[1755562027713,3.63222589,183.51,183.45,64.66]
[1755562027926,0.71,183.52,183.45,64.66]
[1755562027927,3.63222589,183.5,183.46,0.67]
[1755562028112,0.71,183.52,183.45,64.66]
[1755562028301,38.66,183.54,183.47,0.67]
[1755562028302,3.62892825,183.51,183.47,0.67]
[1755562028626,3.62892825,183.53,183.48,0.67]
[1755562028801,39.38,183.54,183.49,5.44988827]
[1755562028802,3.62892825,183.52,183.49,5.44988827]
[1755562029125,3.62892825,183.51,183.49,26.0]
[1755562029423,0.72,183.52,183.49,26.0]
[1755562029619,4.34892825,183.52,183.49,26.0]
[1755562029823,0.72,183.52,183.49,26.0]
[1755562030129,4.34892825,183.52,183.48,31.44989103]
[1755562030317,3.62892825,183.53,183.48,31.44989103]
[1755562030625,3.68892825,183.53,183.49,0.67]
[1755562030826,0.06,183.53,183.48,70.08989103]
[1755562031028,0.06,183.53,183.5,0.67]
[1755562031402,0.06,183.53,183.48,83.71535429]
[1755562031617,0.06,183.53,183.51,0.67]
[1755562032118,0.06,183.53,183.52,5.44899738]
[1755562035719,0.72,183.52,183.51,26.0]
[1755562037439,0.72,183.52,183.5,26.0]
[1755562038222,0.06,183.53,183.5,26.0]
[1755562038422,0.78,183.53,183.5,26.0]
[1755562039144,0.72,183.52,183.5,26.0]
[1755562039742,0.06,183.53,183.5,26.0]
[1755562040131,0.78,183.53,183.5,26.0]
[1755562048756,0.06,183.53,183.5,26.0]
[1755562051154,0.06,183.53,183.5,26.67]
[1755562051451,0.06,183.53,183.5,32.1195273]
[1755562052949,0.06,183.53,183.51,0.67]
[1755562053252,0.06,183.55,183.54,26.0]
[1755562053552,0.06,183.55,183.54,26.67]
[1755562055330,0.06,183.55,183.54,32.11840361]
[1755562057941,0.06,183.55,183.54,31.44840361]
[1755562059139,0.06,183.55,183.54,32.12840361]
[1755562060422,0.06,183.55,183.54,31.44840361]
[1755562062351,0.06,183.55,183.54,32.12840361]
[1755562062852,0.06,183.55,183.54,70.74840361]
[1755562063037,0.06,183.55,183.54,70.06840361]
[1755562063543,0.06,183.55,183.54,70.74840361]
[1755562063862,0.06,183.55,183.54,64.62]
[1755562064026,0.77,183.55,183.54,64.62]
[1755562065056,0.06,183.55,183.54,64.62]
[1755562065746,0.06,183.55,183.54,70.06840361]
[1755562067864,0.06,183.55,183.54,64.62]
[1755562068271,3.6847961,183.55,183.54,64.62]
[1755562068563,0.06,183.55,183.54,64.62]
[1755562068970,0.77,183.55,183.54,64.62]
[1755562069257,4.39370461,183.55,183.54,64.62]
[1755562069458,0.06,183.55,183.54,64.62]
[1755562070050,3.68564625,183.55,183.54,64.62]
[1755562070264,3.68564625,183.55,183.54,26.0]
[1755562070642,4.39564625,183.55,183.54,26.0]
[1755562073463,4.39564625,183.55,183.5,31.47949999]
[1755562073740,4.39564625,183.55,183.5,38.63]
[1755562073741,4.33564625,183.54,183.5,38.63]
[1755562074081,4.33564625,183.53,183.52,26.0]
[1755562074581,4.33564625,183.53,183.5,44.0795351]
[1755562074776,4.33564625,183.52,183.5,64.63]
[1755562075096,0.71,183.52,183.5,38.63]
[1755562075584,5.44854159,183.54,183.5,38.63]
[1755562075762,0.71,183.51,183.5,38.63]
[1755562076546,0.71,183.51,183.5,0.03]
[1755562080352,9.79131714,183.51,183.5,0.03]
[1755562080668,15.10621557,183.5,183.46,0.03]
[1755562080858,7.66672228,183.49,183.46,0.03]
[1755562081169,3.63202283,183.48,183.46,0.03]
[1755562081377,3.63202283,183.47,183.46,0.03]
[1755562081760,4.34202283,183.47,183.46,0.03]
[1755562082485,9.79250519,183.47,183.46,0.03]
[1755562085186,6.16048236,183.47,183.46,0.03]
[1755562085567,9.79250519,183.47,183.46,0.03]
[1755562085784,6.16048236,183.47,183.46,0.03]
[1755562086079,53.70621557,183.5,183.46,0.03]
[1755562086080,0.71,183.5,183.46,0.03]
[1755562086275,0.71,183.5,183.46,26.71]
[1755562086472,3.62284557,183.51,183.47,26.68]
[1755562086774,38.6,183.52,183.48,0.68]
[1755562087171,38.6,183.52,183.47,26.0]
[1755562087172,38.6,183.52,183.49,0.68]
[1755562087377,4.33291406,183.51,183.47,26.0]
[1755562087579,9.78250534,183.5,183.46,0.03]
[1755562087765,3.62291406,183.49,183.46,0.03]
[1755562087970,4.31291406,183.49,183.46,0.03]
[1755562088283,0.69,183.48,183.46,0.03]
[1755562088477,4.31291406,183.48,183.46,0.03]
[1755562088677,3.62291406,183.47,183.46,0.03]
[1755562088884,58.01912963,183.47,183.46,0.03]
[1755562089888,63.46961199,183.47,183.46,0.03]
[1755562091365,39.29,183.47,183.46,0.03]
[1755562091762,44.74048236,183.47,183.46,0.03]
[1755562091969,42.90745205,183.47,183.46,0.03]
[1755562092165,39.29,183.47,183.46,0.03]
[1755562092488,38.6,183.47,183.46,0.03]
[1755562094872,39.29,183.47,183.46,0.03]
[1755562098393,38.6,183.47,183.46,0.03]
[1755562098588,44.04992463,183.49,183.46,0.03]
[1755562098789,15.79621557,183.47,183.46,0.03]
[1755562098973,95.80621557,183.46,183.44,0.03]
[1755562099180,138.0195425,183.45,183.44,0.03]
[1755562099374,138.7095425,183.45,183.44,0.03]
[1755562100176,144.16061908,183.45,183.44,0.03]
[1755562102198,140.54729215,183.45,183.44,0.03]
[1755562102573,80.7,183.45,183.44,0.03]
[1755562103595,81.39,183.45,183.44,0.03]
[1755562103800,101.94729215,183.45,183.44,0.03]
[1755562104005,105.55749177,183.45,183.44,0.03]
[1755562104193,96.49621557,183.45,183.44,0.03]
[1755562104388,101.94729215,183.45,183.44,0.03]
[1755562104984,105.55759259,183.45,183.44,0.03]
[1755562105335,21.24729215,183.45,183.44,0.03]
[1755562105602,0.69,183.45,183.44,0.03]
[1755562106481,6.14107658,183.45,183.44,0.03]
[1755562106713,0.69,183.45,183.44,0.03]
[1755562107220,44.0508693,183.46,183.44,0.03]
[1755562107422,38.6,183.46,183.44,0.03]
[1755562108130,38.6,183.46,183.44,0.72]
[1755562108337,38.6,183.46,183.44,0.03]
[1755562108520,38.6,183.48,183.44,0.03]
[1755562108906,39.29,183.48,183.44,0.03]
[1755562109215,0.69,183.47,183.44,0.03]
[1755562109415,38.6,183.46,183.44,0.03]
[1755562109819,0.69,183.45,183.44,0.03]
[1755562110016,6.14107658,183.45,183.44,0.03]
[1755562110201,21.24729215,183.45,183.44,0.03]
[1755562110404,24.86046871,183.45,183.44,0.03]
[1755562113726,3.61317656,183.45,183.44,0.03]
[1755562114230,4.30317656,183.45,183.44,0.03]
[1755562115123,9.75425314,183.45,183.44,0.03]
[1755562117608,24.86046871,183.45,183.44,0.03]
[1755562117823,28.88316155,183.45,183.44,0.03]
[1755562118027,24.17046871,183.45,183.44,0.03]
[1755562118226,62.77046871,183.45,183.44,0.03]
[1755562119124,63.47046871,183.45,183.44,0.03]
[1755562120434,42.21317656,183.45,183.44,0.03]
[1755562121739,48.36425314,183.45,183.44,0.03]
[1755562122112,52.39503549,183.45,183.44,0.03]
[1755562123439,48.36425314,183.45,183.44,0.03]
[1755562123640,67.50294897,183.45,183.44,0.03]
[1755562123942,72.04139042,183.45,183.44,0.03]
[1755562124428,15.10621557,183.44,183.42,0.03]
[1755562124636,46.24565682,183.43,183.42,0.03]
[1755562124854,46.94565682,183.43,183.42,0.03]
[1755562125845,67.50354332,183.43,183.42,0.03]
[1755562126357,72.04175395,183.43,183.42,0.03]
[1755562126724,67.50354332,183.43,183.42,0.03]
[1755562127234,66.80354332,183.43,183.42,0.03]
[1755562127611,42.21317656,183.43,183.42,0.03]
[1755562130443,3.61317656,183.43,183.42,0.72]
[1755562130634,38.6,183.44,183.42,0.72]
[1755562131053,80.7,183.48,183.43,0.69]
[1755562131257,42.93010606,183.47,183.43,0.69]
[1755562131435,3.63010606,183.46,183.42,0.03]
[1755562131636,42.23010606,183.45,183.42,0.03]
[1755562131939,3.63010606,183.44,183.42,0.72]
[1755562132134,38.6,183.45,183.42,0.72]
[1755562132334,3.63153008,183.44,183.42,0.72]
[1755562132637,5.45080507,183.46,183.43,0.69]
[1755562132638,38.6,183.46,183.43,0.69]
[1755562132942,3.63179726,183.45,183.43,0.69]
[1755562133135,38.6,183.46,183.43,0.69]
[1755562133334,3.63221435,183.45,183.43,0.69]
[1755562133530,3.63221435,183.44,183.43,0.69]
[1755562133758,3.63221435,183.44,183.42,5.48192919]
[1755562133941,38.6,183.46,183.42,5.48192919]
[1755562134256,3.63212759,183.45,183.43,0.69]
[1755562134429,38.6,183.47,183.43,0.69]
[1755562134628,3.63217003,183.46,183.44,0.69]
[1755562134847,3.63217003,183.45,183.44,0.69]
[1755562135432,3.63217003,183.45,183.42,5.48192919]
[1755562135631,0.7,183.46,183.43,26.0]
[1755562135831,4.33188946,183.45,183.42,0.03]
[1755562136051,3.63214267,183.44,183.42,0.03]
[1755562136242,38.6,183.45,183.43,0.69]
[1755562136445,0.06,183.48,183.44,0.69]
[1755562136753,42.23258241,183.47,183.44,0.69]
[1755562136958,3.63258241,183.46,183.44,0.69]
[1755562137146,3.63258241,183.45,183.44,0.69]
[1755562137654,3.63258241,183.45,183.42,0.03]
[1755562137860,3.63258241,183.44,183.42,0.03]
[1755562138030,44.05051841,183.47,183.42,0.03]
[1755562138234,4.33227932,183.46,183.42,0.03]
[1755562138435,3.63227932,183.45,183.42,0.03]
[1755562138655,3.63227932,183.44,183.42,0.03]
[1755562138844,0.7,183.45,183.42,0.03]
[1755562139042,3.63267733,183.44,183.42,0.03]
[1755562139242,0.7,183.45,183.42,0.03]
[1755562139444,3.6331021,183.44,183.42,0.03]
[1755562139661,0.7,183.45,183.42,0.03]
[1755562139862,3.6331021,183.44,183.42,0.03]
[1755562140044,0.7,183.45,183.42,0.03]
[1755562140240,3.63240551,183.44,183.42,0.03]
[1755562140458,44.75051841,183.47,183.42,0.03]
[1755562140738,3.63255206,183.46,183.43,0.69]
[1755562141062,3.63255206,183.45,183.43,0.69]
[1755562141236,0.06,183.48,183.44,0.69]
[1755562141436,3.63287199,183.47,183.45,0.69]
[1755562141646,3.63287199,183.47,183.42,0.03]
[1755562141647,0.06,183.48,183.42,0.03]
[1755562142262,0.06,183.48,183.43,0.69]
[1755562142670,0.06,183.48,183.47,26.0]
[1755562143039,0.06,183.51,183.47,26.69]
[1755562143366,0.06,183.51,183.48,0.69]
[1755562144064,0.06,183.51,183.49,0.69]
[1755562144451,0.06,183.51,183.5,0.69]
[1755562144965,0.06,183.51,183.5,6.13959128]
[1755562146265,0.06,183.52,183.5,6.13959128]
[1755562146435,0.06,183.52,183.51,0.69]
[1755562146836,0.06,183.52,183.5,5.44959128]
[1755562147042,0.06,183.52,183.51,26.0]
[1755562149144,0.06,183.52,183.51,31.44929431]
[1755562152449,0.06,183.52,183.5,5.44959128]
[1755562153762,0.06,183.52,183.5,0.72]
[1755562155276,0.06,183.52,183.49,31.44988827]
[1755562155581,0.68,183.51,183.48,26.0]
[1755562156076,0.68,183.5,183.48,26.0]
[1755562157479,0.06,183.52,183.48,31.45002595]
[1755562157667,0.06,183.52,183.49,0.72]
[1755562158256,0.06,183.52,183.48,31.45002595]
[1755562158461,0.74,183.52,183.48,31.45002595]
[1755562158661,0.74,183.52,183.48,32.17002595]
[1755562158875,0.06,183.52,183.49,0.72]
[1755562159073,0.06,183.52,183.48,31.45002595]
[1755562159383,0.06,183.52,183.48,32.17002595]
[1755562160268,0.74,183.52,183.48,32.17002595]
[1755562160880,0.06,183.52,183.48,32.17002595]
[1755562161087,0.06,183.52,183.49,0.72]
[1755562161285,0.06,183.52,183.48,31.45002595]
[1755562161580,0.06,183.52,183.5,0.72]
[1755562162488,0.06,183.52,183.51,6.16929431]
[1755562162907,0.06,183.52,183.51,5.44929431]
[1755562163797,0.06,183.52,183.5,5.44959128]
[1755562163961,0.06,183.52,183.5,6.16959128]
[1755562164363,0.06,183.52,183.51,0.72]
[1755562164659,0.06,183.53,183.52,26.0]
[1755562165082,0.06,183.53,183.52,26.72]
[1755562165280,0.06,183.53,183.52,26.0]
[1755562165896,0.06,183.53,183.52,31.44899738]
[1755562171387,0.06,183.53,183.52,26.0]
[1755562171574,0.74,183.53,183.52,26.0]
[1755562173199,0.06,183.53,183.52,26.0]
[1755562178372,0.06,183.53,183.52,26.03]
[1755562179594,0.06,183.53,183.52,0.03]
[1755562179799,0.72,183.53,183.52,0.03]
[1755562181414,0.06,183.53,183.52,0.03]
[1755562182217,0.06,183.53,183.52,0.7]
[1755562182900,0.06,183.53,183.52,0.03]
[1755562183811,0.06,183.53,183.52,26.7]
[1755562184938,0.06,183.53,183.52,32.14899738]
[1755562185509,0.06,183.53,183.52,31.47899738]
[1755562186109,0.06,183.53,183.52,32.14899738]
[1755562188035,0.06,183.53,183.52,31.47899738]
[1755562188541,0.06,183.53,183.52,32.14899738]
[1755562190141,0.06,183.55,183.52,70.70899738]
[1755562190445,0.06,183.55,183.53,0.67]
[1755562190742,0.06,183.56,183.53,0.67]
[1755562190918,0.06,183.57,183.53,0.67]
[1755562191433,0.06,183.57,183.54,5.44840361]
[1755562191608,0.06,183.57,183.55,39.23]
[1755562192239,0.06,183.59,183.58,26.0]
[1755562192541,0.06,183.59,183.58,64.54]
[1755562192831,0.06,183.59,183.58,65.21]
[1755562193222,0.06,183.59,183.58,70.65721647]
[1755562194216,0.06,183.59,183.58,69.98721647]
[1755562196224,0.06,183.59,183.58,70.65721647]
[1755562196835,0.06,183.59,183.58,69.98721647]
[1755562201330,0.06,183.59,183.58,70.65721647]
[1755562201531,3.62911398,183.62,183.58,84.27525765]
[1755562201739,3.62938356,183.64,183.58,83.60525765]
[1755562202039,0.66,183.65,183.58,83.60525765]
[1755562202040,3.62955793,183.65,183.59,0.67]
[1755562202243,0.66,183.67,183.66,26.0]
[1755562202827,4.28987066,183.69,183.66,26.0]
[1755562203011,3.62987066,183.71,183.66,26.0]
[1755562203217,4.28987066,183.7,183.66,26.0]
[1755562203413,3.62987066,183.71,183.66,26.0]
[1755562203652,0.66,183.7,183.66,26.0]
[1755562204542,0.66,183.7,183.66,31.44482557]
[1755562205119,0.66,183.7,183.66,26.0]
[1755562205429,3.62190477,183.69,183.61,38.52]
[1755562205733,19.38812034,183.68,183.62,26.0]
[1755562206049,42.80190477,183.67,183.59,38.52]
[1755562206246,4.28190477,183.66,183.59,38.52]
[1755562206540,0.66,183.65,183.59,43.96672149]
[1755562211555,81.36,183.65,183.59,43.96672149]
[1755562211725,0.67,183.64,183.59,43.96672149]
[1755562211926,0.67,183.63,183.59,43.96672149]
[1755562213226,0.67,183.63,183.59,44.62672149]
[1755562214849,86.2051671,183.65,183.59,38.52]
[1755562215054,86.2051671,183.65,183.58,26.03]
[1755562215055,0.67,183.62,183.58,26.03]
[1755562215263,0.67,183.62,183.58,0.03]
[1755562215940,39.19,183.62,183.58,0.03]
[1755562216551,19.39166547,183.61,183.58,0.03]
[1755562216737,15.77621557,183.61,183.58,0.03]
[1755562216938,6.11662309,183.6,183.58,0.03]
[1755562217355,0.67,183.59,183.58,0.03]
[1755562219258,6.11691976,183.59,183.58,0.03]
[1755562220962,0.67,183.59,183.58,0.03]
[1755562221174,0.67,183.61,183.58,0.03]
[1755562221966,0.67,183.6,183.58,0.03]
[1755562225063,5.44643517,183.61,183.58,0.03]
[1755562225242,6.11643517,183.61,183.58,0.03]
[1755562225757,0.67,183.6,183.58,0.03]
[1755562225966,6.11667963,183.6,183.58,0.03]
[1755562226169,0.67,183.59,183.58,0.03]
[1755562227652,9.73710348,183.61,183.58,0.03]